[Event "Titled Tuesday Blitz July 25 Early 2023"]
[White "Itkis, Boris"]
[Black "Kuznetsov, Felix"]
[WhiteFideId "1209167"]
[BlackFideId "34147990"]
[WhiteElo "2445"]
[BlackElo "2712"]
[Result "1/2-1/2"]
[Round "3"]
[TimeControl "180+2"]
[Date "2023.07.25"]
[WhiteClock "0:00:08"]
[BlackClock "0:00:09"]
[Board "97"]

1. c4 {[%clk 0:03:00]}  Nf6 {[%clk 0:02:54]} 2. Nf3 {[%clk 0:03:01]}  e6 {[%clk 0:02:53]} 3. e3 {[%clk 0:03:01]}  b6 {[%clk 0:02:51]} 4. b3 {[%clk 0:03:02]}  Bb7 {[%clk 0:02:52]} 5. Bb2 {[%clk 0:03:02]}  Be7 {[%clk 0:02:52]} 6. g3 {[%clk 0:03:03]}  O-O {[%clk 0:02:53]} 7. Bg2 {[%clk 0:03:03]}  c5 {[%clk 0:02:52]} 8. O-O {[%clk 0:03:04]}  d6 {[%clk 0:02:52]} 9. d4 {[%clk 0:03:02]}  cxd4 {[%clk 0:02:52]} 10. Nxd4 {[%clk 0:02:57]}  Bxg2 {[%clk 0:02:53]} 11. Kxg2 {[%clk 0:02:58]}  Qc7 {[%clk 0:02:18]} 12. Qf3 {[%clk 0:02:53]}  Nbd7 {[%clk 0:02:18]} 13. Nc3 {[%clk 0:02:53]}  Ne5 {[%clk 0:02:12]} 14. Qe2 {[%clk 0:02:50]}  Qb7+ {[%clk 0:02:11]} 15. Kg1 {[%clk 0:02:46]}  a6 {[%clk 0:02:09]} 16. f4 {[%clk 0:02:45]}  Nc6 {[%clk 0:02:04]} 17. Rad1 {[%clk 0:02:42]}  Nxd4 {[%clk 0:01:59]} 18. Rxd4 {[%clk 0:02:36]}  Rac8 {[%clk 0:01:59]} 19. Rfd1 {[%clk 0:02:34]}  Rfd8 {[%clk 0:01:58]} 20. Qg2 {[%clk 0:02:29]}  Qc7 {[%clk 0:01:53]} 21. Ba3 {[%clk 0:02:27]}  d5 {[%clk 0:01:46]} 22. Bxe7 {[%clk 0:02:24]}  Qxe7 {[%clk 0:01:47]} 23. Qd2 {[%clk 0:02:22]}  Qc7 {[%clk 0:01:40]} 24. e4 {[%clk 0:02:12]}  b5 {[%clk 0:00:50]} 25. exd5 {[%clk 0:02:08]}  Qb6 {[%clk 0:00:39]} 26. dxe6 {[%clk 0:01:43]}  fxe6 {[%clk 0:00:38]} 27. Qf2 {[%clk 0:01:29]}  Rxd4 {[%clk 0:00:27]} 28. Qxd4 {[%clk 0:01:28]}  Qc7 {[%clk 0:00:24]} 29. Qe5 {[%clk 0:00:34]}  Qb6+ {[%clk 0:00:20]} 30. Qd4 {[%clk 0:00:30]}  Qc7 {[%clk 0:00:20]} 31. Ne4 {[%clk 0:00:26]}  Nxe4 {[%clk 0:00:14]} 32. Qxe4 {[%clk 0:00:27]}  Qb6+ {[%clk 0:00:12]} 33. Qd4 {[%clk 0:00:20]}  Qc6 {[%clk 0:00:11]} 34. cxb5 {[%clk 0:00:10]}  axb5 {[%clk 0:00:12]} 35. Re1 {[%clk 0:00:10]}  h5 {[%clk 0:00:11]} 36. Qe4 {[%clk 0:00:09]}  Qc5+ {[%clk 0:00:12]} 37. Kg2 {[%clk 0:00:08]}  Rc6 {[%clk 0:00:12]} 38. Qe5 {[%clk 0:00:06]}  Qxe5 {[%clk 0:00:12]} 39. Rxe5 {[%clk 0:00:06]}  Rc2+ {[%clk 0:00:12]} 40. Kh3 {[%clk 0:00:05]}  Rxa2 {[%clk 0:00:11]} 41. Rxb5 {[%clk 0:00:06]}  g6 {[%clk 0:00:11]} 42. Rb7 {[%clk 0:00:05]}  Kf8 {[%clk 0:00:10]} 43. b4 {[%clk 0:00:05]}  Rb2 {[%clk 0:00:11]} 44. b5 {[%clk 0:00:05]}  Kg8 {[%clk 0:00:10]} 45. Kh4 {[%clk 0:00:05]}  Rxh2+ {[%clk 0:00:09]} 46. Kg5 {[%clk 0:00:05]}  Rg2 {[%clk 0:00:10]} 47. Kxg6 {[%clk 0:00:04]}  Rxg3+ {[%clk 0:00:09]} 48. Kxh5 {[%clk 0:00:04]}  Kf8 {[%clk 0:00:09]} 49. b6 {[%clk 0:00:03]}  Rb3 {[%clk 0:00:07]} 50. Kg5 {[%clk 0:00:03]}  Rb4 {[%clk 0:00:04]} 51. Kf6 {[%clk 0:00:02]}  Rxf4+ {[%clk 0:00:04]} 52. Kxe6 {[%clk 0:00:03]}  Rb4 {[%clk 0:00:03]} 53. Rb8+ {[%clk 0:00:02]}  Kg7 {[%clk 0:00:04]} 54. b7 {[%clk 0:00:03]}  Rb1 {[%clk 0:00:02]} 55. Kd6 {[%clk 0:00:02]}  Rd1+ {[%clk 0:00:03]} 56. Kc5 {[%clk 0:00:02]}  Rc1+ {[%clk 0:00:03]} 57. Kb4 {[%clk 0:00:02]}  Rb1+ {[%clk 0:00:04]} 58. Kc3 {[%clk 0:00:02]}  Rb6 {[%clk 0:00:04]} 59. Kc4 {[%clk 0:00:02]}  Rb1 {[%clk 0:00:04]} 60. Kc5 {[%clk 0:00:01]}  Kh7 {[%clk 0:00:04]} 61. Kd6 {[%clk 0:00:01]}  Rd1+ {[%clk 0:00:04]} 62. Kc7 {[%clk 0:00:02]}  Rc1+ {[%clk 0:00:05]} 63. Kd8 {[%clk 0:00:03]}  Rd1+ {[%clk 0:00:05]} 64. Kc8 {[%clk 0:00:04]}  Rc1+ {[%clk 0:00:06]} 65. Kd7 {[%clk 0:00:05]}  Rd1+ {[%clk 0:00:06]} 66. Kc6 {[%clk 0:00:06]}  Rc1+ {[%clk 0:00:07]} 67. Kb6 {[%clk 0:00:06]}  Rb1+ {[%clk 0:00:07]} 68. Ka5 {[%clk 0:00:07]}  Kg7 {[%clk 0:00:07]} 69. Ka6 {[%clk 0:00:05]}  Ra1+ {[%clk 0:00:07]} 70. Kb6 {[%clk 0:00:05]}  Rb1+ {[%clk 0:00:08]} 71. Ka6 {[%clk 0:00:06]}  Ra1+ {[%clk 0:00:08]} 72. Kb6 {[%clk 0:00:07]}  Rb1+ {[%clk 0:00:09]} 73. Ka6 {[%clk 0:00:08]} 1/2-1/2


[Site "https://www.chess.com"]

[Event "Titled Tuesday Blitz July 25 Early 2023"]
[White "Ionescu, Mihai"]
[Black "Antonio, Rogelio Jr"]
[WhiteFideId "1202499"]
[BlackFideId "5200032"]
[WhiteElo "2437"]
[BlackElo "2690"]
[Result "0-1"]
[Round "3"]
[TimeControl "180+2"]
[Date "2023.07.25"]
[WhiteClock "0:00:03"]
[BlackClock "0:01:10"]
[Board "102"]

1. Nf3 {[%clk 0:03:00]}  Nf6 {[%clk 0:03:00]} 2. c4 {[%clk 0:03:00]}  g6 {[%clk 0:02:59]} 3. b3 {[%clk 0:03:00]}  Bg7 {[%clk 0:03:00]} 4. Bb2 {[%clk 0:03:00]}  O-O {[%clk 0:03:00]} 5. g3 {[%clk 0:02:36]}  d6 {[%clk 0:02:59]} 6. Bg2 {[%clk 0:02:36]}  e5 {[%clk 0:02:59]} 7. d3 {[%clk 0:02:35]}  Nfd7 {[%clk 0:02:57]} 8. Qc2 {[%clk 0:02:32]}  Nc6 {[%clk 0:02:57]} 9. a3 {[%clk 0:02:30]}  a5 {[%clk 0:02:54]} 10. O-O {[%clk 0:02:31]}  h6 {[%clk 0:02:54]} 11. Nbd2 {[%clk 0:02:30]}  Nc5 {[%clk 0:02:53]} 12. Bc3 {[%clk 0:02:27]}  g5 {[%clk 0:02:39]} 13. b4 {[%clk 0:02:16]}  axb4 {[%clk 0:02:31]} 14. axb4 {[%clk 0:02:17]}  Rxa1 {[%clk 0:02:30]} 15. Rxa1 {[%clk 0:02:15]}  Nxb4 {[%clk 0:02:21]} 16. Bxb4 {[%clk 0:02:12]}  e4 {[%clk 0:02:21]} 17. Bc3 {[%clk 0:02:11]}  exf3 {[%clk 0:02:18]} 18. Bxf3 {[%clk 0:02:07]}  Re8 {[%clk 0:02:15]} 19. Ne4 {[%clk 0:01:58]}  Nxe4 {[%clk 0:01:56]} 20. Bxe4 {[%clk 0:01:57]}  c6 {[%clk 0:01:50]} 21. Bxg7 {[%clk 0:01:51]}  Kxg7 {[%clk 0:01:51]} 22. Qb2+ {[%clk 0:01:39]}  Qf6 {[%clk 0:01:51]} 23. Rb1 {[%clk 0:01:28]}  Re7 {[%clk 0:01:46]} 24. Qxf6+ {[%clk 0:01:18]}  Kxf6 {[%clk 0:01:47]} 25. Rb2 {[%clk 0:01:19]}  Kg7 {[%clk 0:01:43]} 26. Kf1 {[%clk 0:01:09]}  Re5 {[%clk 0:01:36]} 27. Ke1 {[%clk 0:01:07]}  Ra5 {[%clk 0:01:36]} 28. Kd2 {[%clk 0:01:00]}  Kf6 {[%clk 0:01:37]} 29. Ke3 {[%clk 0:00:55]}  Ke7 {[%clk 0:01:36]} 30. Bg2 {[%clk 0:00:49]}  Kd8 {[%clk 0:01:36]} 31. f4 {[%clk 0:00:42]}  Kc7 {[%clk 0:01:36]} 32. fxg5 {[%clk 0:00:41]}  hxg5 {[%clk 0:01:37]} 33. h4 {[%clk 0:00:39]}  gxh4 {[%clk 0:01:35]} 34. gxh4 {[%clk 0:00:38]}  Rh5 {[%clk 0:01:36]} 35. Rb1 {[%clk 0:00:23]}  Rxh4 {[%clk 0:01:35]} 36. Rh1 {[%clk 0:00:22]}  Rxh1 {[%clk 0:01:34]} 37. Bxh1 {[%clk 0:00:23]}  Be6 {[%clk 0:01:32]} 38. Kd4 {[%clk 0:00:23]}  Bg4 {[%clk 0:01:25]} 39. e3 {[%clk 0:00:22]}  f6 {[%clk 0:01:22]} 40. Kc3 {[%clk 0:00:18]}  c5 {[%clk 0:01:16]} 41. d4 {[%clk 0:00:17]}  Bd7 {[%clk 0:01:14]} 42. dxc5 {[%clk 0:00:16]}  dxc5 {[%clk 0:01:15]} 43. Bd5 {[%clk 0:00:16]}  b6 {[%clk 0:01:14]} 44. Kd3 {[%clk 0:00:15]}  Kd6 {[%clk 0:01:14]} 45. Bg8 {[%clk 0:00:09]}  Ke5 {[%clk 0:01:12]} 46. Bf7 {[%clk 0:00:07]}  Bf5+ {[%clk 0:01:10]} 47. Kd2 {[%clk 0:00:07]}  Be6 {[%clk 0:01:09]} 48. Bg6 {[%clk 0:00:07]}  Bxc4 {[%clk 0:01:09]} 49. Kc3 {[%clk 0:00:06]}  Be6 {[%clk 0:01:09]} 50. Bc2 {[%clk 0:00:05]}  b5 {[%clk 0:01:08]} 51. Bd3 {[%clk 0:00:05]}  b4+ {[%clk 0:01:09]} 52. Kb2 {[%clk 0:00:02]}  c4 {[%clk 0:01:10]} 53. Bb1 {[%clk 0:00:02]}  Bd5 {[%clk 0:01:09]} 54. Bh7 {[%clk 0:00:02]}  c3+ {[%clk 0:01:09]} 55. Kc2 {[%clk 0:00:02]}  Be4+ {[%clk 0:01:09]} 56. Bxe4 {[%clk 0:00:02]}  Kxe4 {[%clk 0:01:10]} 57. Kb3 {[%clk 0:00:03]}  Kd3 {[%clk 0:01:10]} 0-1


[Site "https://www.chess.com"]

[Event "Titled Tuesday Blitz July 25 Early 2023"]
[White "Shuvalova, Polina"]
[Black "JonSnowNW1"]
[WhiteFideId "24171760"]
[WhiteElo "2663"]
[BlackElo "2429"]
[Result "1-0"]
[Round "3"]
[TimeControl "180+2"]
[Date "2023.07.25"]
[WhiteClock "0:00:23"]
[BlackClock "0:00:02"]
[Board "107"]

1. f4 {[%clk 0:03:00]}  c5 {[%clk 0:02:54]} 2. g3 {[%clk 0:02:58]}  Nc6 {[%clk 0:02:54]} 3. Bg2 {[%clk 0:02:55]}  g6 {[%clk 0:02:54]} 4. Nf3 {[%clk 0:02:52]}  Bg7 {[%clk 0:02:54]} 5. O-O {[%clk 0:02:52]}  d6 {[%clk 0:02:55]} 6. e4 {[%clk 0:02:52]}  Nf6 {[%clk 0:02:53]} 7. d3 {[%clk 0:02:52]}  O-O {[%clk 0:02:53]} 8. Nc3 {[%clk 0:02:52]}  Rb8 {[%clk 0:02:51]} 9. a4 {[%clk 0:02:49]}  a6 {[%clk 0:02:50]} 10. Kh1 {[%clk 0:02:47]}  Bd7 {[%clk 0:02:39]} 11. Be3 {[%clk 0:02:47]}  Qc8 {[%clk 0:02:39]} 12. d4 {[%clk 0:02:41]}  cxd4 {[%clk 0:02:32]} 13. Nxd4 {[%clk 0:02:41]}  Bh3 {[%clk 0:02:31]} 14. Qd2 {[%clk 0:02:24]}  Bxg2+ {[%clk 0:02:28]} 15. Kxg2 {[%clk 0:02:23]}  Rd8 {[%clk 0:02:05]} 16. Rae1 {[%clk 0:02:13]}  e5 {[%clk 0:02:03]} 17. Nxc6 {[%clk 0:02:11]}  Qxc6 {[%clk 0:01:57]} 18. Qd3 {[%clk 0:01:56]}  d5 {[%clk 0:01:53]} 19. exd5 {[%clk 0:01:32]}  Nxd5 {[%clk 0:01:52]} 20. Nxd5 {[%clk 0:01:28]}  Rxd5 {[%clk 0:01:51]} 21. Qe4 {[%clk 0:01:28]}  f5 {[%clk 0:01:27]} 22. Qf3 {[%clk 0:01:28]}  e4 {[%clk 0:01:25]} 23. Qe2 {[%clk 0:01:28]}  Bxb2 {[%clk 0:01:24]} 24. c4 {[%clk 0:01:28]}  Rd3 {[%clk 0:00:59]} 25. Qxb2 {[%clk 0:01:25]}  Qxa4 {[%clk 0:00:58]} 26. Re2 {[%clk 0:01:17]}  Qxc4 {[%clk 0:00:51]} 27. Rff2 {[%clk 0:01:14]}  b5 {[%clk 0:00:50]} 28. Qf6 {[%clk 0:01:10]}  Qf7 {[%clk 0:00:44]} 29. Qxa6 {[%clk 0:01:07]}  b4 {[%clk 0:00:42]} 30. Bc1 {[%clk 0:01:03]}  Qd5 {[%clk 0:00:37]} 31. Kh3 {[%clk 0:00:55]}  Rf8 {[%clk 0:00:13]} 32. Bb2 {[%clk 0:00:54]}  h6 {[%clk 0:00:12]} 33. Qb6 {[%clk 0:00:49]}  Qf7 {[%clk 0:00:09]} 34. Qxb4 {[%clk 0:00:40]}  g5 {[%clk 0:00:09]} 35. Kg2 {[%clk 0:00:37]}  gxf4 {[%clk 0:00:05]} 36. Rxf4 {[%clk 0:00:37]}  Qd5 {[%clk 0:00:05]} 37. Qe7 {[%clk 0:00:32]}  e3+ {[%clk 0:00:04]} 38. Kh3 {[%clk 0:00:30]}  Qf7 {[%clk 0:00:04]} 39. Qxf7+ {[%clk 0:00:29]}  Rxf7 {[%clk 0:00:04]} 40. Rf3 {[%clk 0:00:28]}  Re7 {[%clk 0:00:02]} 41. Rxf5 {[%clk 0:00:28]}  Rb3 {[%clk 0:00:02]} 42. Bd4 {[%clk 0:00:27]}  Rd3 {[%clk 0:00:02]} 43. Bc5 {[%clk 0:00:27]}  Rd2 {[%clk 0:00:02]} 44. Rxe3 {[%clk 0:00:23]} 1-0


[Site "https://www.chess.com"]

[Event "Titled Tuesday Blitz July 25 Early 2023"]
[White "Haug, Havard"]
[Black "Krzywda, Andrzej"]
[WhiteFideId "1547887"]
[BlackFideId "1114565"]
[WhiteElo "2659"]
[BlackElo "2427"]
[Result "1-0"]
[Round "3"]
[TimeControl "180+2"]
[Date "2023.07.25"]
[WhiteClock "0:02:22"]
[BlackClock "0:01:23"]
[Board "110"]

1. e4 {[%clk 0:02:59]}  e5 {[%clk 0:02:59]} 2. Nc3 {[%clk 0:02:58]}  Nf6 {[%clk 0:02:58]} 3. Bc4 {[%clk 0:02:58]}  Nc6 {[%clk 0:02:57]} 4. d3 {[%clk 0:02:58]}  Bb4 {[%clk 0:02:56]} 5. Ne2 {[%clk 0:02:57]}  d5 {[%clk 0:02:57]} 6. exd5 {[%clk 0:02:57]}  Nxd5 {[%clk 0:02:57]} 7. Bxd5 {[%clk 0:02:58]}  Qxd5 {[%clk 0:02:53]} 8. O-O {[%clk 0:02:58]}  Qd7 {[%clk 0:02:36]} 9. f4 {[%clk 0:02:56]}  O-O {[%clk 0:02:33]} 10. f5 {[%clk 0:02:55]}  Nd4 {[%clk 0:02:29]} 11. f6 {[%clk 0:02:53]}  Qg4 {[%clk 0:02:18]} 12. Nxd4 {[%clk 0:02:40]}  Qxd4+ {[%clk 0:02:03]} 13. Kh1 {[%clk 0:02:40]}  Bxc3 {[%clk 0:01:57]} 14. bxc3 {[%clk 0:02:36]}  Qxc3 {[%clk 0:01:57]} 15. Qh5 {[%clk 0:02:30]}  e4 {[%clk 0:01:39]} 16. Qg5 {[%clk 0:02:23]}  Qxa1 {[%clk 0:01:23]} 17. Qxg7# {[%clk 0:02:22]} 1-0


[Site "https://www.chess.com"]

[Event "Titled Tuesday Blitz July 25 Early 2023"]
[White "Begunov, Konstantin"]
[Black "Hilary46"]
[WhiteFideId "4118510"]
[WhiteElo "2425"]
[BlackElo "2639"]
[Result "1-0"]
[Round "3"]
[TimeControl "180+2"]
[Date "2023.07.25"]
[WhiteClock "0:00:14"]
[BlackClock "0:00:01"]
[Board "111"]

1. d4 {[%clk 0:03:00]}  d5 {[%clk 0:02:59]} 2. c4 {[%clk 0:03:00]}  e6 {[%clk 0:02:57]} 3. Nc3 {[%clk 0:03:00]}  c6 {[%clk 0:02:57]} 4. cxd5 {[%clk 0:03:00]}  exd5 {[%clk 0:02:57]} 5. Nf3 {[%clk 0:02:59]}  Nf6 {[%clk 0:02:55]} 6. Bg5 {[%clk 0:02:59]}  h6 {[%clk 0:02:54]} 7. Bh4 {[%clk 0:02:58]}  Bf5 {[%clk 0:02:55]} 8. e3 {[%clk 0:02:54]}  Nbd7 {[%clk 0:02:54]} 9. Bd3 {[%clk 0:02:53]}  Bxd3 {[%clk 0:02:48]} 10. Qxd3 {[%clk 0:02:54]}  Bd6 {[%clk 0:02:48]} 11. O-O {[%clk 0:02:54]}  O-O {[%clk 0:02:48]} 12. Rab1 {[%clk 0:02:54]}  a6 {[%clk 0:02:44]} 13. b4 {[%clk 0:02:53]}  b5 {[%clk 0:02:43]} 14. e4 {[%clk 0:02:49]}  dxe4 {[%clk 0:02:41]} 15. Nxe4 {[%clk 0:02:50]}  Be7 {[%clk 0:02:41]} 16. Rfe1 {[%clk 0:02:45]}  Nxe4 {[%clk 0:02:39]} 17. Bxe7 {[%clk 0:02:44]}  Qxe7 {[%clk 0:02:40]} 18. Rxe4 {[%clk 0:02:43]}  Qd6 {[%clk 0:02:40]} 19. a3 {[%clk 0:02:29]}  Rfe8 {[%clk 0:02:36]} 20. Rbe1 {[%clk 0:02:27]}  Rxe4 {[%clk 0:02:36]} 21. Qxe4 {[%clk 0:02:23]}  a5 {[%clk 0:02:35]} 22. bxa5 {[%clk 0:02:09]}  Rxa5 {[%clk 0:02:15]} 23. Qe8+ {[%clk 0:02:07]}  Nf8 {[%clk 0:02:12]} 24. Ne5 {[%clk 0:01:49]}  Qe6 {[%clk 0:01:52]} 25. Nxc6 {[%clk 0:01:38]}  Qxe8 {[%clk 0:01:51]} 26. Rxe8 {[%clk 0:01:39]}  Rxa3 {[%clk 0:01:52]} 27. g3 {[%clk 0:01:35]}  g6 {[%clk 0:01:40]} 28. Rb8 {[%clk 0:01:31]}  Rb3 {[%clk 0:01:35]} 29. Kg2 {[%clk 0:01:07]}  Kg7 {[%clk 0:01:35]} 30. Rb7 {[%clk 0:01:07]}  Rd3 {[%clk 0:01:02]} 31. Ne5 {[%clk 0:00:43]}  Rxd4 {[%clk 0:01:02]} 32. Rxf7+ {[%clk 0:00:39]}  Kg8 {[%clk 0:01:02]} 33. Rb7 {[%clk 0:00:39]}  Rd5 {[%clk 0:01:02]} 34. f4 {[%clk 0:00:31]}  g5 {[%clk 0:01:03]} 35. Kf3 {[%clk 0:00:28]}  gxf4 {[%clk 0:01:03]} 36. gxf4 {[%clk 0:00:29]}  Ne6 {[%clk 0:01:02]} 37. Ke4 {[%clk 0:00:21]}  Rd4+ {[%clk 0:00:47]} 38. Kf5 {[%clk 0:00:21]}  Ng7+ {[%clk 0:00:47]} 39. Kg4 {[%clk 0:00:18]}  Rd5 {[%clk 0:00:27]} 40. h4 {[%clk 0:00:16]}  Rc5 {[%clk 0:00:10]} 41. h5 {[%clk 0:00:15]}  Rd5 {[%clk 0:00:11]} 42. Rb8+ {[%clk 0:00:14]}  Kh7 {[%clk 0:00:08]} 43. Ng6 {[%clk 0:00:15]}  Nxh5 {[%clk 0:00:05]} 44. Nf8+ {[%clk 0:00:12]}  Kg7 {[%clk 0:00:03]} 45. Ne6+ {[%clk 0:00:12]}  Kf6 {[%clk 0:00:02]} 46. Nc7 {[%clk 0:00:13]}  Rc5 {[%clk 0:00:02]} 47. Nxb5 {[%clk 0:00:12]}  Ng7 {[%clk 0:00:01]} 48. Rb6+ {[%clk 0:00:13]}  Ne6 {[%clk 0:00:01]} 49. Nd4 {[%clk 0:00:13]}  Kf7 {[%clk 0:00:02]} 50. Nxe6 {[%clk 0:00:12]}  Rc1 {[%clk 0:00:02]} 51. Nd4 {[%clk 0:00:12]}  Rg1+ {[%clk 0:00:02]} 52. Kf5 {[%clk 0:00:12]}  h5 {[%clk 0:00:02]} 53. Nf3 {[%clk 0:00:13]}  Rg3 {[%clk 0:00:02]} 54. Rb7+ {[%clk 0:00:14]}  Kg8 {[%clk 0:00:02]} 55. Ng5 {[%clk 0:00:14]}  h4 {[%clk 0:00:02]} 56. Kg6 {[%clk 0:00:14]}  Kf8 {[%clk 0:00:01]} 57. f5 {[%clk 0:00:14]} 1-0


[Site "https://www.chess.com"]

[Event "Titled Tuesday Blitz July 25 Early 2023"]
[White "Martic, Ivan"]
[Black "Nunez V, Gustavo Eduardo"]
[WhiteFideId "929301"]
[BlackFideId "4403690"]
[WhiteElo "2627"]
[BlackElo "2424"]
[Result "1-0"]
[Round "3"]
[TimeControl "180+2"]
[Date "2023.07.25"]
[WhiteClock "0:00:44"]
[BlackClock "0:01:17"]
[Board "112"]

1. d4 {[%clk 0:03:00]}  Nf6 {[%clk 0:02:48]} 2. Nf3 {[%clk 0:03:00]}  g6 {[%clk 0:02:43]} 3. c4 {[%clk 0:02:57]}  Bg7 {[%clk 0:02:44]} 4. g3 {[%clk 0:02:57]}  O-O {[%clk 0:02:41]} 5. Bg2 {[%clk 0:02:57]}  d6 {[%clk 0:02:42]} 6. O-O {[%clk 0:02:57]}  Nbd7 {[%clk 0:02:43]} 7. Nc3 {[%clk 0:02:57]}  e5 {[%clk 0:02:43]} 8. e4 {[%clk 0:02:58]}  Re8 {[%clk 0:02:43]} 9. h3 {[%clk 0:02:55]}  exd4 {[%clk 0:02:43]} 10. Nxd4 {[%clk 0:02:55]}  Nc5 {[%clk 0:02:43]} 11. Qc2 {[%clk 0:02:52]}  c6 {[%clk 0:02:42]} 12. Be3 {[%clk 0:02:49]}  Qc7 {[%clk 0:02:38]} 13. Rad1 {[%clk 0:02:47]}  a6 {[%clk 0:02:36]} 14. Rfe1 {[%clk 0:02:45]}  b5 {[%clk 0:02:36]} 15. b4 {[%clk 0:02:39]}  Ne6 {[%clk 0:02:35]} 16. cxb5 {[%clk 0:02:38]}  Nxd4 {[%clk 0:02:34]} 17. Bxd4 {[%clk 0:02:39]}  cxb5 {[%clk 0:02:26]} 18. Bxf6 {[%clk 0:02:22]}  Bxf6 {[%clk 0:02:24]} 19. e5 {[%clk 0:02:22]}  Bf5 {[%clk 0:02:24]} 20. Qd2 {[%clk 0:02:00]}  Bxe5 {[%clk 0:02:12]} 21. Bxa8 {[%clk 0:01:55]}  Rxa8 {[%clk 0:02:13]} 22. Nd5 {[%clk 0:01:54]}  Qd8 {[%clk 0:02:03]} 23. f4 {[%clk 0:01:54]}  Bg7 {[%clk 0:01:57]} 24. Ne7+ {[%clk 0:01:49]}  Kh8 {[%clk 0:01:56]} 25. Nxf5 {[%clk 0:01:50]}  gxf5 {[%clk 0:01:57]} 26. Qxd6 {[%clk 0:01:49]}  Qxd6 {[%clk 0:01:53]} 27. Rxd6 {[%clk 0:01:50]}  Bc3 {[%clk 0:01:53]} 28. Red1 {[%clk 0:01:34]}  Kg7 {[%clk 0:01:49]} 29. a3 {[%clk 0:01:33]}  a5 {[%clk 0:01:48]} 30. R6d5 {[%clk 0:01:19]}  axb4 {[%clk 0:01:48]} 31. axb4 {[%clk 0:01:20]}  Rb8 {[%clk 0:01:43]} 32. Rxf5 {[%clk 0:01:16]}  Bxb4 {[%clk 0:01:43]} 33. Rb1 {[%clk 0:01:16]}  Bd2 {[%clk 0:01:38]} 34. Rbxb5 {[%clk 0:01:13]}  Ra8 {[%clk 0:01:37]} 35. Rb7 {[%clk 0:01:11]}  Be3+ {[%clk 0:01:35]} 36. Kg2 {[%clk 0:01:11]}  Ra2+ {[%clk 0:01:35]} 37. Kf3 {[%clk 0:01:11]}  Bd4 {[%clk 0:01:29]} 38. Rfxf7+ {[%clk 0:01:04]}  Kg6 {[%clk 0:01:29]} 39. Rfd7 {[%clk 0:00:58]}  Ra3+ {[%clk 0:01:28]} 40. Ke4 {[%clk 0:00:54]}  Ra4 {[%clk 0:01:17]} 41. Rxd4 {[%clk 0:00:48]}  Ra6 {[%clk 0:01:17]} 42. Rdb4 {[%clk 0:00:46]}  Re6+ {[%clk 0:01:17]} 43. Kf3 {[%clk 0:00:46]}  Re1 {[%clk 0:01:17]} 44. R4b6+ {[%clk 0:00:44]}  Kf5 {[%clk 0:01:17]} 45. g4# {[%clk 0:00:44]} 1-0


[Site "https://www.chess.com"]

[Event "Titled Tuesday Blitz July 25 Early 2023"]
[White "Lenaerts, Lennert"]
[Black "Goncalves, Davi Sulzbacher"]
[WhiteFideId "211435"]
[BlackFideId "2154510"]
[WhiteElo "2616"]
[BlackElo "2420"]
[Result "1-0"]
[Round "3"]
[TimeControl "180+2"]
[Date "2023.07.25"]
[WhiteClock "0:00:52"]
[BlackClock "0:00:01"]
[Board "114"]

1. d4 {[%clk 0:02:59]}  Nf6 {[%clk 0:02:59]} 2. c4 {[%clk 0:02:59]}  e6 {[%clk 0:02:59]} 3. Nc3 {[%clk 0:02:59]}  Bb4 {[%clk 0:02:59]} 4. g3 {[%clk 0:03:00]}  d5 {[%clk 0:02:55]} 5. Bg2 {[%clk 0:03:00]}  O-O {[%clk 0:02:55]} 6. Nf3 {[%clk 0:03:00]}  c5 {[%clk 0:02:52]} 7. dxc5 {[%clk 0:02:58]}  Ne4 {[%clk 0:02:47]} 8. Qb3 {[%clk 0:02:51]}  Nc6 {[%clk 0:02:34]} 9. cxd5 {[%clk 0:02:51]}  exd5 {[%clk 0:02:11]} 10. O-O {[%clk 0:02:49]}  Nxc3 {[%clk 0:02:10]} 11. bxc3 {[%clk 0:02:49]}  Bxc5 {[%clk 0:02:10]} 12. Rd1 {[%clk 0:02:48]}  Be6 {[%clk 0:01:50]} 13. Qxb7 {[%clk 0:02:47]}  Na5 {[%clk 0:01:36]} 14. Qb5 {[%clk 0:02:45]}  Qb6 {[%clk 0:01:22]} 15. Qxb6 {[%clk 0:02:39]}  axb6 {[%clk 0:01:23]} 16. Bf4 {[%clk 0:02:28]}  Nc4 {[%clk 0:01:18]} 17. Nd4 {[%clk 0:02:28]}  Ra3 {[%clk 0:01:09]} 18. Nb5 {[%clk 0:02:26]}  Ra5 {[%clk 0:01:07]} 19. Nc7 {[%clk 0:02:20]}  Bg4 {[%clk 0:00:52]} 20. Bxd5 {[%clk 0:01:54]}  Bxe2 {[%clk 0:00:46]} 21. Re1 {[%clk 0:01:54]}  Bd3 {[%clk 0:00:46]} 22. Rad1 {[%clk 0:01:54]}  Nb2 {[%clk 0:00:45]} 23. Rd2 {[%clk 0:01:47]}  Ba3 {[%clk 0:00:39]} 24. Bb3 {[%clk 0:01:21]}  g5 {[%clk 0:00:31]} 25. Be3 {[%clk 0:01:18]}  Bc4 {[%clk 0:00:17]} 26. Bxb6 {[%clk 0:01:12]}  Rf5 {[%clk 0:00:12]} 27. Rxb2 {[%clk 0:01:06]}  Bxb2 {[%clk 0:00:12]} 28. Bxc4 {[%clk 0:01:06]}  Bxc3 {[%clk 0:00:12]} 29. Re3 {[%clk 0:01:02]}  Bd2 {[%clk 0:00:11]} 30. Re2 {[%clk 0:01:02]}  Bb4 {[%clk 0:00:10]} 31. Nd5 {[%clk 0:01:03]}  Bd6 {[%clk 0:00:09]} 32. Bc7 {[%clk 0:01:02]}  Rxd5 {[%clk 0:00:08]} 33. Bxd5 {[%clk 0:00:59]}  Bxc7 {[%clk 0:00:09]} 34. Re7 {[%clk 0:00:57]}  Bd6 {[%clk 0:00:07]} 35. Rd7 {[%clk 0:00:57]}  Be5 {[%clk 0:00:07]} 36. a4 {[%clk 0:00:57]}  Bc3 {[%clk 0:00:04]} 37. Ra7 {[%clk 0:00:52]}  Kg7 {[%clk 0:00:03]} 38. a5 {[%clk 0:00:52]}  Kg6 {[%clk 0:00:03]} 39. a6 {[%clk 0:00:52]}  f6 {[%clk 0:00:01]} 40. Rd7 {[%clk 0:00:52]} 1-0


[Site "https://www.chess.com"]